[Event "Early-Titled-Tuesday-Blitz-February-06-2024"]
[Site "Chess.com"]
[Date "2024.02.06"]
[Round "4"]
[White "Quattroporte300"]
[Black "JoachimBN"]
[Result "0-1"]
[WhiteElo "2393"]
[BlackElo "2611"]
[TimeControl "180+1"]
[EndTime "8:39:03 PST"]
[Termination "JoachimBN won by resignation"]

1. e4 {[%clk 0:03:00.9]} 1... c5 {[%clk 0:02:58.1]} 2. c3 {[%clk 0:03:00.5]}
2... g6 {[%clk 0:02:52.2]} 3. d4 {[%clk 0:02:59.6]} 3... cxd4 {[%clk 0:02:52.5]}
4. cxd4 {[%clk 0:02:58.8]} 4... d5 {[%clk 0:02:52.6]} 5. e5 {[%clk 0:02:59.3]}
5... Nc6 {[%clk 0:02:50.4]} 6. Nc3 {[%clk 0:02:59.1]} 6... Bg7 {[%clk
0:02:44.2]} 7. h3 {[%clk 0:02:59.1]} 7... Nh6 {[%clk 0:02:43.2]} 8. Nf3 {[%clk
0:02:58.1]} 8... O-O {[%clk 0:02:43]} 9. Bb5 {[%clk 0:02:54.4]} 9... f6 {[%clk
0:02:42.7]} 10. exf6 {[%clk 0:02:46.5]} 10... exf6 {[%clk 0:02:42.5]} 11. O-O
{[%clk 0:02:46.8]} 11... Nf5 {[%clk 0:02:36.7]} 12. Ba4 {[%clk 0:02:38.1]} 12...
Be6 {[%clk 0:02:33]} 13. Re1 {[%clk 0:02:37.6]} 13... Bf7 {[%clk 0:02:33.1]} 14.
Bf4 {[%clk 0:02:21.3]} 14... Qb6 {[%clk 0:02:24.7]} 15. Bxc6 {[%clk 0:02:13.3]}
15... Qxc6 {[%clk 0:02:25.1]} 16. Rc1 {[%clk 0:02:10]} 16... Qd7 {[%clk
0:02:08.9]} 17. Na4 {[%clk 0:02:02.1]} 17... b6 {[%clk 0:02:07.6]} 18. Rc7
{[%clk 0:02:00.6]} 18... Qb5 {[%clk 0:02:07.8]} 19. b3 {[%clk 0:01:48.5]} 19...
Rfe8 {[%clk 0:01:59.3]} 20. Rxe8+ {[%clk 0:01:43.2]} 20... Qxe8 {[%clk
0:01:57.6]} 21. Qc2 {[%clk 0:01:32.1]} 21... Bf8 {[%clk 0:01:51.1]} 22. Nc3
{[%clk 0:01:10.1]} 22... Qe6 {[%clk 0:01:30.2]} 23. Nb5 {[%clk 0:01:05.9]} 23...
g5 {[%clk 0:01:29.5]} 24. Bc1 {[%clk 0:00:54.5]} 24... a6 {[%clk 0:01:26.8]} 25.
Rc6 {[%clk 0:00:39.5]} 25... Qe4 {[%clk 0:01:20]} 26. Nc7 {[%clk 0:00:25.5]}
26... Qxc2 {[%clk 0:01:17.2]} 27. Rxc2 {[%clk 0:00:25.1]} 27... Rc8 {[%clk
0:01:13.4]} 28. Rc6 {[%clk 0:00:18.4]} 28... Bd6 {[%clk 0:00:47.5]} 29. g4
{[%clk 0:00:12.2]} 29... Bxc7 {[%clk 0:00:47.8]} 30. Kf1 {[%clk 0:00:06.8]}
30... Ne7 {[%clk 0:00:47.3]} 31. Rc2 {[%clk 0:00:04.6]} 31... Bd6 {[%clk
0:00:45.9]} 32. Rxc8+ {[%clk 0:00:04.1]} 32... Nxc8 {[%clk 0:00:46.1]} 33. Ke2
{[%clk 0:00:04.8]} 33... Bg6 {[%clk 0:00:46.3]} 34. Bd2 {[%clk 0:00:04.7]} 34...
Ne7 {[%clk 0:00:46.1]} 35. a4 {[%clk 0:00:04.1]} 35... h5 {[%clk 0:00:45.5]} 36.
Ne1 {[%clk 0:00:02.4]} 36... h4 {[%clk 0:00:45.4]} 37. Nd3 {[%clk 0:00:02.7]}
37... Nc6 {[%clk 0:00:42.5]} 38. Nb4 {[%clk 0:00:03.2]} 38... Nxb4 {[%clk
0:00:42.2]} 0-1

[Event "Early-Titled-Tuesday-Blitz-February-06-2024"]
[Site "Chess.com"]
[Date "2024.02.06"]
[Round "4"]
[White "Keeper0416"]
[Black "starworld123"]
[Result "0-1"]
[WhiteElo "2565"]
[BlackElo "2828"]
[TimeControl "180+1"]
[EndTime "8:39:04 PST"]
[Termination "starworld123 won on time"]

1. d4 {[%clk 0:03:00.4]} 1... Nf6 {[%clk 0:02:59.9]} 2. c4 {[%clk 0:03:00.8]}
2... e6 {[%clk 0:03:00.2]} 3. Nf3 {[%clk 0:03:01.4]} 3... d5 {[%clk 0:02:58.4]}
4. g3 {[%clk 0:03:01.8]} 4... dxc4 {[%clk 0:02:55.6]} 5. Bg2 {[%clk 0:02:57.9]}
5... a6 {[%clk 0:02:44.8]} 6. O-O {[%clk 0:02:30.9]} 6... b5 {[%clk 0:02:43.5]}
7. b3 {[%clk 0:02:22]} 7... cxb3 {[%clk 0:02:41]} 8. axb3 {[%clk 0:02:22.9]}
8... Bb7 {[%clk 0:02:40.5]} 9. Bb2 {[%clk 0:02:22.3]} 9... Nbd7 {[%clk
0:02:36.1]} 10. Nbd2 {[%clk 0:02:20.9]} 10... c5 {[%clk 0:02:35.8]} 11. Qc2
{[%clk 0:02:04.4]} 11... Rc8 {[%clk 0:02:33.9]} 12. Rfc1 {[%clk 0:01:42.5]}
12... Be7 {[%clk 0:02:25.6]} 13. Qb1 {[%clk 0:01:27.3]} 13... O-O {[%clk
0:02:23]} 14. e4 {[%clk 0:01:04.9]} 14... cxd4 {[%clk 0:02:17.6]} 15. Rxc8
{[%clk 0:01:04.7]} 15... Qxc8 {[%clk 0:02:18.5]} 16. e5 {[%clk 0:01:02.6]} 16...
Nd5 {[%clk 0:02:17.8]} 17. Bxd4 {[%clk 0:01:02.3]} 17... Bc5 {[%clk 0:02:09.5]}
18. Ng5 {[%clk 0:01:01.1]} 18... g6 {[%clk 0:02:09.7]} 19. Qb2 {[%clk
0:00:49.9]} 19... Rd8 {[%clk 0:01:50]} 20. Nde4 {[%clk 0:00:39.9]} 20... Bxd4
{[%clk 0:01:41]} 21. Qxd4 {[%clk 0:00:40.8]} 21... Rf8 {[%clk 0:00:57.8]} 22.
Nd6 {[%clk 0:00:40.4]} 22... Qb8 {[%clk 0:00:49]} 23. Bxd5 {[%clk 0:00:02.4]}
23... Bxd5 {[%clk 0:00:46.4]} 24. Rxa6 {[%clk 0:00:02.3]} 24... Qc7 {[%clk
0:00:26.5]} 25. Ra1 {[%clk 0:00:02]} 25... f6 {[%clk 0:00:20.8]} 26. Nge4 {[%clk
0:00:01.2]} 26... Nxe5 {[%clk 0:00:19.7]} 0-1

[Event "Early-Titled-Tuesday-Blitz-February-06-2024"]
[Site "Chess.com"]
[Date "2024.02.06"]
[Round "4"]
[White "nihalsarin"]
[Black "xamax2000"]
[Result "1-0"]
[WhiteElo "3125"]
[BlackElo "2856"]
[TimeControl "180+1"]
[EndTime "8:39:05 PST"]
[Termination "nihalsarin won on time"]

1. a3 {[%clk 0:02:57.7]} 1... e5 {[%clk 0:02:57.4]} 2. c4 {[%clk 0:02:56.5]}
2... g6 {[%clk 0:02:51.2]} 3. b4 {[%clk 0:02:54.5]} 3... Bg7 {[%clk 0:02:51.1]}
4. Bb2 {[%clk 0:02:55.3]} 4... d6 {[%clk 0:02:47.5]} 5. g3 {[%clk 0:02:55.5]}
5... f5 {[%clk 0:02:40.6]} 6. Bg2 {[%clk 0:02:55.6]} 6... Nf6 {[%clk 0:02:40.9]}
7. d3 {[%clk 0:02:53.5]} 7... O-O {[%clk 0:02:41.2]} 8. Nf3 {[%clk 0:02:53.4]}
8... h6 {[%clk 0:02:34]} 9. O-O {[%clk 0:02:53.2]} 9... Be6 {[%clk 0:02:34.6]}
10. Nh4 {[%clk 0:02:46.5]} 10... g5 {[%clk 0:02:26.8]} 11. Bxb7 {[%clk
0:02:44.8]} 11... Nbd7 {[%clk 0:02:20.6]} 12. Bxa8 {[%clk 0:02:42.5]} 12... Qxa8
{[%clk 0:02:20.3]} 13. Ng2 {[%clk 0:02:37.4]} 13... f4 {[%clk 0:02:19.5]} 14.
Nd2 {[%clk 0:02:37]} 14... Bh3 {[%clk 0:02:17]} 15. f3 {[%clk 0:02:37]} 15...
Ng4 {[%clk 0:01:53.9]} 16. Qb3 {[%clk 0:02:19.5]} 16... Bxg2 {[%clk 0:01:45.2]}
17. Kxg2 {[%clk 0:02:20.4]} 17... Ne3+ {[%clk 0:01:45.5]} 18. Kg1 {[%clk
0:02:19.9]} 18... Nxf1 {[%clk 0:01:43.1]} 19. Rxf1 {[%clk 0:02:20.8]} 19... Nf6
{[%clk 0:01:40.5]} 20. c5+ {[%clk 0:02:18.9]} 20... Kh8 {[%clk 0:01:38.2]} 21.
cxd6 {[%clk 0:02:19.3]} 21... cxd6 {[%clk 0:01:38.9]} 22. Ne4 {[%clk 0:02:20.1]}
22... fxg3 {[%clk 0:01:27.6]} 23. hxg3 {[%clk 0:02:19.2]} 23... Nh5 {[%clk
0:01:25.6]} 24. Qe6 {[%clk 0:01:59]} 24... d5 {[%clk 0:01:18.4]} 25. Bxe5 {[%clk
0:01:25.3]} 25... dxe4 {[%clk 0:01:11.3]} 26. Qxh6+ {[%clk 0:01:25.2]} 26... Kg8
{[%clk 0:01:11.9]} 27. Qxh5 {[%clk 0:01:26.1]} 27... Bxe5 {[%clk 0:01:10]} 28.
Qxg5+ {[%clk 0:01:26.7]} 28... Bg7 {[%clk 0:01:09.7]} 29. dxe4 {[%clk
0:01:25.4]} 29... Rd8 {[%clk 0:00:54]} 30. Rc1 {[%clk 0:01:21]} 30... Rd7 {[%clk
0:00:47.9]} 31. Qf5 {[%clk 0:01:18.9]} 31... Qb7 {[%clk 0:00:41.6]} 32. Kg2
{[%clk 0:01:16.6]} 32... a6 {[%clk 0:00:32.2]} 33. Qe6+ {[%clk 0:01:13.2]} 33...
Kf8 {[%clk 0:00:27.2]} 34. Rc5 {[%clk 0:01:09.9]} 34... Bb2 {[%clk 0:00:05.8]}
35. Rf5+ {[%clk 0:00:49]} 35... Rf7 {[%clk 0:00:05.8]} 36. Rxf7+ {[%clk
0:00:49.8]} 36... Qxf7 {[%clk 0:00:06.4]} 37. Qxa6 {[%clk 0:00:50.7]} 37... Qb3
{[%clk 0:00:02.9]} 38. Qd3 {[%clk 0:00:44.6]} 1-0

[Event "Early-Titled-Tuesday-Blitz-February-06-2024"]
[Site "Chess.com"]
[Date "2024.02.06"]
[Round "4"]
[White "GianmarcoVaR"]
[Black "lilleper1"]
[Result "0-1"]
[WhiteElo "2676"]
[BlackElo "2920"]
[TimeControl "180+1"]
[EndTime "8:39:05 PST"]
[Termination "lilleper1 won on time"]

1. e4 {[%clk 0:03:00.9]} 1... c5 {[%clk 0:02:59.5]} 2. Nf3 {[%clk 0:03:01]} 2...
d6 {[%clk 0:02:59.9]} 3. Bb5+ {[%clk 0:02:56.6]} 3... Nd7 {[%clk 0:02:59.5]} 4.
a4 {[%clk 0:02:55.6]} 4... Nf6 {[%clk 0:02:58.7]} 5. Nc3 {[%clk 0:02:55.1]} 5...
a6 {[%clk 0:02:58.1]} 6. Bc4 {[%clk 0:02:51.6]} 6... b6 {[%clk 0:02:57.2]} 7. d4
{[%clk 0:02:45.8]} 7... cxd4 {[%clk 0:02:54.3]} 8. Qxd4 {[%clk 0:02:46.3]} 8...
e6 {[%clk 0:02:53.3]} 9. O-O {[%clk 0:02:37.2]} 9... Bb7 {[%clk 0:02:53.3]} 10.
Rd1 {[%clk 0:02:36.5]} 10... Qc7 {[%clk 0:02:52.9]} 11. b3 {[%clk 0:02:30.1]}
11... Be7 {[%clk 0:02:49.3]} 12. Ba3 {[%clk 0:02:27.9]} 12... Nc5 {[%clk
0:02:39.4]} 13. e5 {[%clk 0:02:25.3]} 13... dxe5 {[%clk 0:02:21.9]} 14. Qxe5
{[%clk 0:02:25.6]} 14... Qc8 {[%clk 0:01:52.3]} 15. a5 {[%clk 0:01:39.5]} 15...
Ncd7 {[%clk 0:01:27.7]} 16. Rxd7 {[%clk 0:01:18.2]} 16... Nxd7 {[%clk
0:01:20.6]} 17. Qxg7 {[%clk 0:01:13]} 17... Bf6 {[%clk 0:01:20.9]} 18. Qh6
{[%clk 0:01:13.2]} 18... Qc6 {[%clk 0:01:02]} 19. Nd5 {[%clk 0:00:07.5]} 19...
exd5 {[%clk 0:00:58]} 20. Re1+ {[%clk 0:00:07.2]} 20... Kd8 {[%clk 0:00:58.5]}
21. Bd3 {[%clk 0:00:03.2]} 21... Kc8 {[%clk 0:00:53.1]} 22. Ng5 {[%clk
0:00:02.8]} 22... Rg8 {[%clk 0:00:44.5]} 23. Nxf7 {[%clk 0:00:03.3]} 23... d4
{[%clk 0:00:42]} 24. Be4 {[%clk 0:00:03.7]} 24... Rxg2+ {[%clk 0:00:35.2]} 25.
Kf1 {[%clk 0:00:03.3]} 25... Rg6 {[%clk 0:00:20.4]} 26. Qxg6 {[%clk 0:00:01.7]}
26... hxg6 {[%clk 0:00:17.3]} 27. Bxc6 {[%clk 0:00:02.2]} 27... Bxc6 {[%clk
0:00:18.2]} 28. Re8+ {[%clk 0:00:02.2]} 28... Kc7 {[%clk 0:00:17]} 0-1

[Event "Early-Titled-Tuesday-Blitz-February-06-2024"]
[Site "Chess.com"]
[Date "2024.02.06"]
[Round "4"]
[White "javirec"]
[Black "Schattman"]
[Result "1-0"]
[WhiteElo "2288"]
[BlackElo "2412"]
[TimeControl "180+1"]
[EndTime "8:39:05 PST"]
[Termination "javirec won on time"]

1. e4 {[%clk 0:02:44.4]} 1... c5 {[%clk 0:02:59.4]} 2. Nf3 {[%clk 0:02:44]} 2...
d6 {[%clk 0:03:00]} 3. d4 {[%clk 0:02:43.4]} 3... cxd4 {[%clk 0:03:00.9]} 4.
Nxd4 {[%clk 0:02:43.7]} 4... Nf6 {[%clk 0:03:01.5]} 5. Nc3 {[%clk 0:02:43.9]}
5... a6 {[%clk 0:03:02.1]} 6. Be3 {[%clk 0:02:43.8]} 6... e5 {[%clk 0:03:02.2]}
7. Nf3 {[%clk 0:02:44.1]} 7... Be6 {[%clk 0:02:56]} 8. Ng5 {[%clk 0:02:43.4]}
8... Bg4 {[%clk 0:02:54.6]} 9. f3 {[%clk 0:02:37.9]} 9... Be6 {[%clk 0:02:53.9]}
10. Nxe6 {[%clk 0:02:35.6]} 10... fxe6 {[%clk 0:02:54.8]} 11. Bc4 {[%clk
0:02:35.5]} 11... Qc8 {[%clk 0:02:54.6]} 12. Qe2 {[%clk 0:02:33.5]} 12... b5
{[%clk 0:02:52.2]} 13. Bb3 {[%clk 0:02:32.8]} 13... Be7 {[%clk 0:02:52.7]} 14.
O-O-O {[%clk 0:02:31.3]} 14... O-O {[%clk 0:02:49.7]} 15. g4 {[%clk 0:02:31.2]}
15... Kh8 {[%clk 0:02:47.6]} 16. h4 {[%clk 0:02:30.8]} 16... Nc6 {[%clk
0:02:41.1]} 17. h5 {[%clk 0:02:29.8]} 17... Ne8 {[%clk 0:02:35.5]} 18. g5 {[%clk
0:02:29.6]} 18... Na5 {[%clk 0:02:31.5]} 19. g6 {[%clk 0:02:28.9]} 19... h6
{[%clk 0:02:22.3]} 20. Qd2 {[%clk 0:02:27.6]} 20... Nxb3+ {[%clk 0:02:08.1]} 21.
axb3 {[%clk 0:02:27]} 21... Rxf3 {[%clk 0:01:37.3]} 22. Bxh6 {[%clk 0:02:21.5]}
22... Kg8 {[%clk 0:01:21]} 23. Bxg7 {[%clk 0:01:17.8]} 23... Kxg7 {[%clk
0:01:06.5]} 24. h6+ {[%clk 0:01:06.5]} 24... Kh8 {[%clk 0:01:06.5]} 25. Qg2
{[%clk 0:00:53.3]} 25... Nf6 {[%clk 0:00:09.2]} 26. Qxf3 {[%clk 0:00:51.9]}
26... b4 {[%clk 0:00:09.7]} 27. Na4 {[%clk 0:00:50.8]} 27... d5 {[%clk
0:00:07.6]} 28. Nb6 {[%clk 0:00:46.6]} 28... Qb7 {[%clk 0:00:07.6]} 29. Nxa8
{[%clk 0:00:45.2]} 29... Qxa8 {[%clk 0:00:07.9]} 30. h7 {[%clk 0:00:40]} 30...
Qd8 {[%clk 0:00:05.8]} 31. g7+ {[%clk 0:00:35.4]} 31... Kxg7 {[%clk 0:00:05.9]}
32. h8=Q+ {[%clk 0:00:35.8]} 32... Qxh8 {[%clk 0:00:05.9]} 33. Rdg1+ {[%clk
0:00:31.3]} 1-0

[Event "Early-Titled-Tuesday-Blitz-February-06-2024"]
[Site "Chess.com"]
[Date "2024.02.06"]
[Round "4"]
[White "Matols"]
[Black "jens1102"]
[Result "1-0"]
[WhiteElo "2411"]
[BlackElo "2612"]
[TimeControl "180+1"]
[EndTime "8:39:06 PST"]
[Termination "Matols won by checkmate"]

1. d4 {[%clk 0:03:00.9]} 1... Nf6 {[%clk 0:02:59.4]} 2. c4 {[%clk 0:03:01.3]}
2... e6 {[%clk 0:03:00.1]} 3. g3 {[%clk 0:03:01.5]} 3... Bb4+ {[%clk 0:03:00.5]}
4. Bd2 {[%clk 0:03:01.9]} 4... Be7 {[%clk 0:02:57.2]} 5. Bg2 {[%clk 0:03:00.4]}
5... O-O {[%clk 0:02:58.1]} 6. Nf3 {[%clk 0:02:56.3]} 6... d5 {[%clk 0:02:58.6]}
7. O-O {[%clk 0:02:55.5]} 7... c6 {[%clk 0:02:59]} 8. Qc2 {[%clk 0:02:55.6]}
8... b5 {[%clk 0:02:58.9]} 9. c5 {[%clk 0:02:50.5]} 9... a5 {[%clk 0:02:59.1]}
10. Bf4 {[%clk 0:02:41.5]} 10... Nbd7 {[%clk 0:02:57]} 11. Nbd2 {[%clk
0:02:33.8]} 11... b4 {[%clk 0:02:49.3]} 12. e4 {[%clk 0:02:27.5]} 12... Ba6
{[%clk 0:02:49.6]} 13. Rfe1 {[%clk 0:02:26.8]} 13... dxe4 {[%clk 0:02:42.3]} 14.
Nxe4 {[%clk 0:02:27.7]} 14... Nd5 {[%clk 0:02:40.1]} 15. Bd6 {[%clk 0:02:25]}
15... N7f6 {[%clk 0:02:35.2]} 16. Ne5 {[%clk 0:02:05.8]} 16... Nxe4 {[%clk
0:02:30.7]} 17. Nxc6 {[%clk 0:01:59.3]} 17... Nxd6 {[%clk 0:02:19.1]} 18. Nxd8
{[%clk 0:01:56.1]} 18... Rfxd8 {[%clk 0:02:20]} 19. Bxd5 {[%clk 0:01:31.4]}
19... Rac8 {[%clk 0:02:08.8]} 20. Bg2 {[%clk 0:01:28.4]} 20... Nf5 {[%clk
0:02:07.9]} 21. Rad1 {[%clk 0:01:12.3]} 21... Nxd4 {[%clk 0:02:06.9]} 22. Qe4
{[%clk 0:01:07.3]} 22... Bxc5 {[%clk 0:02:04.6]} 23. h4 {[%clk 0:01:02.7]} 23...
Rc7 {[%clk 0:02:02.2]} 24. h5 {[%clk 0:01:01.9]} 24... h6 {[%clk 0:02:01.7]} 25.
Kh2 {[%clk 0:00:56.1]} 25... Rcd7 {[%clk 0:01:47.9]} 26. Rc1 {[%clk 0:00:55.4]}
26... Bb6 {[%clk 0:01:41.9]} 27. Qg4 {[%clk 0:00:42.1]} 27... Bb7 {[%clk
0:01:36.5]} 28. Bxb7 {[%clk 0:00:40.5]} 28... Rxb7 {[%clk 0:01:37.1]} 29. Kg2
{[%clk 0:00:38.3]} 29... Rbd7 {[%clk 0:01:36.9]} 30. Re5 {[%clk 0:00:34.1]}
30... Nf5 {[%clk 0:01:35.8]} 31. Rc6 {[%clk 0:00:24.4]} 31... Rd6 {[%clk
0:01:19.6]} 32. Rxd6 {[%clk 0:00:23.3]} 32... Rxd6 {[%clk 0:01:20.5]} 33. Rb5
{[%clk 0:00:21.2]} 33... Kh7 {[%clk 0:01:05.8]} 34. Qe4 {[%clk 0:00:17.8]} 34...
Rd4 {[%clk 0:00:54.4]} 35. Qb7 {[%clk 0:00:16.8]} 35... Bd8 {[%clk 0:00:52]} 36.
Qxf7 {[%clk 0:00:16.1]} 36... Re4 {[%clk 0:00:46.5]} 37. Qg6+ {[%clk 0:00:15.9]}
37... Kg8 {[%clk 0:00:42.8]} 38. Qe8+ {[%clk 0:00:16]} 38... Kh7 {[%clk
0:00:43.2]} 39. Qxd8 {[%clk 0:00:16.5]} 39... Re2 {[%clk 0:00:41.4]} 40. Qe8
{[%clk 0:00:15.7]} 40... Ne3+ {[%clk 0:00:39.8]} 41. Kf3 {[%clk 0:00:15.8]}
41... Rxf2+ {[%clk 0:00:39.6]} 42. Kxf2 {[%clk 0:00:15.3]} 42... Nd5 {[%clk
0:00:40.5]} 43. Qg6+ {[%clk 0:00:14.6]} 43... Kh8 {[%clk 0:00:39.4]} 44. Rb8#
{[%clk 0:00:15.5]} 1-0

[Event "Early-Titled-Tuesday-Blitz-February-06-2024"]
[Site "Chess.com"]
[Date "2024.02.06"]
[Round "4"]
[White "Caroexpert"]
[Black "Jenia84"]
[Result "0-1"]
[WhiteElo "2559"]
[BlackElo "2315"]
[TimeControl "180+1"]
[EndTime "8:39:07 PST"]
[Termination "Jenia84 won by checkmate"]

1. d4 {[%clk 0:03:00.9]} 1... Nf6 {[%clk 0:02:57.2]} 2. Nf3 {[%clk 0:02:53.3]}
2... e6 {[%clk 0:02:56.1]} 3. Bf4 {[%clk 0:02:38.1]} 3... b6 {[%clk 0:02:55.4]}
4. e3 {[%clk 0:02:37.1]} 4... Bb7 {[%clk 0:02:55]} 5. Nbd2 {[%clk 0:02:37.6]}
5... d5 {[%clk 0:02:50.2]} 6. h3 {[%clk 0:02:36.6]} 6... Bd6 {[%clk 0:02:48.6]}
7. Ne5 {[%clk 0:02:36.2]} 7... Nbd7 {[%clk 0:02:47.5]} 8. Bd3 {[%clk 0:02:34.9]}
8... Ne4 {[%clk 0:02:41.4]} 9. Nxe4 {[%clk 0:02:24]} 9... dxe4 {[%clk
0:02:40.9]} 10. Bb5 {[%clk 0:02:24.5]} 10... Bxe5 {[%clk 0:02:33.7]} 11. dxe5
{[%clk 0:02:16.3]} 11... a6 {[%clk 0:02:15.2]} 12. Be2 {[%clk 0:02:13.3]} 12...
g5 {[%clk 0:02:03.7]} 13. Bg3 {[%clk 0:02:10.8]} 13... Qe7 {[%clk 0:01:56.5]}
14. h4 {[%clk 0:02:07.7]} 14... O-O-O {[%clk 0:01:49]} 15. hxg5 {[%clk
0:02:06.1]} 15... Nxe5 {[%clk 0:01:45.4]} 16. Bxe5 {[%clk 0:01:56.3]} 16...
Rxd1+ {[%clk 0:01:43]} 17. Rxd1 {[%clk 0:01:57.2]} 17... Rg8 {[%clk 0:01:33.6]}
18. Bf6 {[%clk 0:01:38.7]} 18... Qb4+ {[%clk 0:01:31.3]} 19. c3 {[%clk
0:01:18.1]} 19... Qxb2 {[%clk 0:01:27]} 20. Rxh7 {[%clk 0:01:17.5]} 20... Kb8
{[%clk 0:01:23.2]} 21. Rxf7 {[%clk 0:01:15.8]} 21... Qxa2 {[%clk 0:01:12.8]} 22.
Be5 {[%clk 0:01:07.5]} 22... Rxg5 {[%clk 0:00:53.3]} 23. Bxc7+ {[%clk
0:00:45.4]} 23... Ka7 {[%clk 0:00:53.3]} 24. Rdd7 {[%clk 0:00:24.5]} 24... Qa1+
{[%clk 0:00:46.6]} 25. Bd1 {[%clk 0:00:23.3]} 25... Qxc3+ {[%clk 0:00:36.9]} 26.
Kf1 {[%clk 0:00:15.4]} 26... Rd5 {[%clk 0:00:31.8]} 27. Bd6 {[%clk 0:00:09.4]}
27... Qd3+ {[%clk 0:00:23.2]} 28. Kg1 {[%clk 0:00:08.7]} 28... Qxd1+ {[%clk
0:00:22.2]} 29. Kh2 {[%clk 0:00:09.1]} 29... Qh5+ {[%clk 0:00:18.6]} 30. Kg1
{[%clk 0:00:08.6]} 30... Rd1# {[%clk 0:00:18.2]} 0-1

[Event "Early-Titled-Tuesday-Blitz-February-06-2024"]
[Site "Chess.com"]
[Date "2024.02.06"]
[Round "4"]
[White "EmirhanTarlabasi"]
[Black "cukricek"]
[Result "0-1"]
[WhiteElo "2633"]
[BlackElo "2346"]
[TimeControl "180+1"]
[EndTime "8:39:08 PST"]
[Termination "cukricek won by resignation"]

1. d4 {[%clk 0:03:00.9]} 1... Nf6 {[%clk 0:02:51.9]} 2. Nf3 {[%clk 0:02:58.3]}
2... g6 {[%clk 0:02:51.9]} 3. Nbd2 {[%clk 0:02:55.3]} 3... d5 {[%clk 0:02:51]}
4. e3 {[%clk 0:02:50.1]} 4... Bg7 {[%clk 0:02:51.2]} 5. b4 {[%clk 0:02:50.5]}
5... O-O {[%clk 0:02:50.9]} 6. Bb2 {[%clk 0:02:50.6]} 6... b6 {[%clk 0:02:48]}
7. c4 {[%clk 0:02:28.9]} 7... c5 {[%clk 0:02:47.7]} 8. bxc5 {[%clk 0:02:26]}
8... bxc5 {[%clk 0:02:48.6]} 9. cxd5 {[%clk 0:02:24.6]} 9... Nxd5 {[%clk
0:02:49]} 10. Bc4 {[%clk 0:02:23.3]} 10... Nc6 {[%clk 0:02:41.2]} 11. O-O {[%clk
0:02:09]} 11... Rb8 {[%clk 0:02:37.7]} 12. Rb1 {[%clk 0:02:02.7]} 12... cxd4
{[%clk 0:02:30.6]} 13. Nxd4 {[%clk 0:01:58.3]} 13... Nxd4 {[%clk 0:02:28.4]} 14.
Bxd4 {[%clk 0:01:57.9]} 14... Rxb1 {[%clk 0:02:25.9]} 15. Nxb1 {[%clk
0:01:58.8]} 15... Bxd4 {[%clk 0:02:19]} 16. Qxd4 {[%clk 0:01:56.1]} 16... Nb6
{[%clk 0:02:19.4]} 17. Bb3 {[%clk 0:01:01.1]} 17... Qxd4 {[%clk 0:02:14]} 18.
exd4 {[%clk 0:01:02]} 18... Rd8 {[%clk 0:02:13.9]} 19. Rd1 {[%clk 0:00:57.4]}
19... Bb7 {[%clk 0:02:01.2]} 20. Nc3 {[%clk 0:00:51.2]} 20... Nd5 {[%clk
0:01:47.5]} 21. Na4 {[%clk 0:00:51]} 21... Nf4 {[%clk 0:01:39.9]} 22. d5 {[%clk
0:00:18.7]} 22... Nxd5 {[%clk 0:01:16.6]} 23. Nc5 {[%clk 0:00:13.9]} 23... Bc6
{[%clk 0:01:16.6]} 24. h4 {[%clk 0:00:09.6]} 24... e6 {[%clk 0:01:15.3]} 25. Rc1
{[%clk 0:00:10]} 25... Bb5 {[%clk 0:01:09.9]} 26. g3 {[%clk 0:00:08.2]} 26...
Rc8 {[%clk 0:01:04.9]} 27. Bxd5 {[%clk 0:00:04.7]} 27... exd5 {[%clk 0:01:04.4]}
28. Nb3 {[%clk 0:00:05.3]} 28... Rxc1+ {[%clk 0:01:02.2]} 29. Nxc1 {[%clk
0:00:06.2]} 29... Kg7 {[%clk 0:01:02.1]} 30. f4 {[%clk 0:00:03.6]} 30... Bc4
{[%clk 0:01:01.8]} 31. Kf2 {[%clk 0:00:03.4]} 31... h5 {[%clk 0:00:59.9]} 32.
Ke3 {[%clk 0:00:03.8]} 32... Kf6 {[%clk 0:01:00.4]} 33. Kd4 {[%clk 0:00:04.3]}
33... Kf5 {[%clk 0:01:00.7]} 34. Nb3 {[%clk 0:00:04.4]} 34... Bxb3 {[%clk
0:01:00.3]} 35. axb3 {[%clk 0:00:05.3]} 35... Kg4 {[%clk 0:01:00.7]} 36. Kxd5
{[%clk 0:00:05.5]} 36... Kxg3 {[%clk 0:01:01.3]} 37. b4 {[%clk 0:00:05.6]} 37...
Kxf4 {[%clk 0:00:57.5]} 38. b5 {[%clk 0:00:06.2]} 38... g5 {[%clk 0:00:57.5]}
39. hxg5 {[%clk 0:00:06.8]} 39... h4 {[%clk 0:00:56]} 40. Kc6 {[%clk 0:00:07.6]}
40... h3 {[%clk 0:00:56]} 41. Kb7 {[%clk 0:00:08.5]} 41... h2 {[%clk 0:00:56.3]}
42. Kxa7 {[%clk 0:00:09.4]} 42... h1=Q {[%clk 0:00:56.5]} 43. b6 {[%clk
0:00:10.3]} 43... Kxg5 {[%clk 0:00:56.1]} 44. b7 {[%clk 0:00:10.7]} 44... Qa1+
{[%clk 0:00:56.4]} 45. Kb6 {[%clk 0:00:10.7]} 45... Qb2+ {[%clk 0:00:56.4]} 46.
Ka7 {[%clk 0:00:11.4]} 46... Qa3+ {[%clk 0:00:56.1]} 47. Kb6 {[%clk 0:00:11.7]}
47... Qb4+ {[%clk 0:00:56.4]} 48. Kc7 {[%clk 0:00:12.3]} 48... f5 {[%clk
0:00:55]} 0-1

[Event "Early-Titled-Tuesday-Blitz-February-06-2024"]
[Site "Chess.com"]
[Date "2024.02.06"]
[Round "4"]
[White "Nuvas"]
[Black "KbzasDavid16"]
[Result "1-0"]
[WhiteElo "2796"]
[BlackElo "2561"]
[TimeControl "180+1"]
[EndTime "8:39:09 PST"]
[Termination "Nuvas won on time"]

1. d4 {[%clk 0:02:59.6]} 1... Nf6 {[%clk 0:02:52.9]} 2. c4 {[%clk 0:02:59.7]}
2... e6 {[%clk 0:02:51.2]} 3. Nc3 {[%clk 0:02:59.6]} 3... d5 {[%clk 0:02:52.1]}
4. cxd5 {[%clk 0:02:59.6]} 4... exd5 {[%clk 0:02:52.2]} 5. Bg5 {[%clk
0:03:00.1]} 5... c6 {[%clk 0:02:52.8]} 6. e3 {[%clk 0:03:00.5]} 6... Nbd7 {[%clk
0:02:53.2]} 7. Bd3 {[%clk 0:03:00.7]} 7... Be7 {[%clk 0:02:53.7]} 8. h3 {[%clk
0:03:00.9]} 8... O-O {[%clk 0:02:53.2]} 9. Bf4 {[%clk 0:03:01.2]} 9... Re8
{[%clk 0:02:52.4]} 10. Nf3 {[%clk 0:03:01.2]} 10... Nf8 {[%clk 0:02:52.2]} 11.
Qc2 {[%clk 0:03:01.5]} 11... g6 {[%clk 0:02:44.5]} 12. g4 {[%clk 0:02:51.4]}
12... Ne6 {[%clk 0:02:43.4]} 13. Bg3 {[%clk 0:02:49]} 13... b5 {[%clk
0:02:24.9]} 14. Ne5 {[%clk 0:02:44.9]} 14... Bb7 {[%clk 0:02:22.9]} 15. O-O
{[%clk 0:02:39]} 15... a6 {[%clk 0:02:15.3]} 16. f4 {[%clk 0:02:26.2]} 16... Nf8
{[%clk 0:01:34.4]} 17. f5 {[%clk 0:01:55.8]} 17... g5 {[%clk 0:01:31]} 18. h4
{[%clk 0:01:55.9]} 18... h6 {[%clk 0:01:20.3]} 19. Qh2 {[%clk 0:01:21.2]} 19...
N6d7 {[%clk 0:00:34.4]} 20. hxg5 {[%clk 0:01:05.8]} 20... Bxg5 {[%clk
0:00:34.3]} 21. Bf4 {[%clk 0:00:59.4]} 21... c5 {[%clk 0:00:25.1]} 22. Ne2
{[%clk 0:00:45.4]} 22... Nxe5 {[%clk 0:00:21.9]} 23. dxe5 {[%clk 0:00:42.9]}
23... d4 {[%clk 0:00:20.7]} 24. exd4 {[%clk 0:00:40.1]} 24... cxd4 {[%clk
0:00:17.3]} 25. Rae1 {[%clk 0:00:27.7]} 25... f6 {[%clk 0:00:05.2]} 26. Bxg5
{[%clk 0:00:23.5]} 26... hxg5 {[%clk 0:00:02]} 27. e6 {[%clk 0:00:20.4]} 27...
Qe7 {[%clk 0:00:02.3]} 28. Ng3 {[%clk 0:00:20.4]} 28... Qh7 {[%clk 0:00:02.3]}
29. Nh5 {[%clk 0:00:20.5]} 29... Qh8 {[%clk 0:00:01.5]} 30. Qc7 {[%clk
0:00:19.3]} 30... Re7 {[%clk 0:00:01.4]} 31. Qxe7 {[%clk 0:00:19.2]} 1-0